Cogmind - Beta 16 @@@ ROGUE MODE // 2026.02.05 @ 14:00:25 Player: NIL64 Result: Destroyed by L-31 Rogue with Katana Performance ------------- Evolutions (2) 1000 Regions Visited (4) 800 Robots Destroyed (12) 60 Value Destroyed (301) 301 Prototype IDs (2) 40 Alien Tech Used (0) 0 Bonus (0) 0 TOTAL SCORE: 2201 Bonus ------- None Cogmind --------- Core Integrity 0/550 Matter 271/300 Energy 55/100 System Corruption 0% Temperature Cool (0) Movement Core (100) Ox1 Location -8/Materials Parts ------- > --- POWER (1) -------- (None) > --- PROPULSION (4) --- (None) > --- UTILITY (4) ------ Improved Heat Sink Visual Processing Unit > --- WEAPON (2) ------- Field Laser > --- INVENTORY (5) ---- (None) Peak State ------------ > --- POWER ------------ Light Ion Engine > --- PROPULSION ------- Flight Unit Flight Unit Flight Unit Flight Unit > --- UTILITY ---------- Heat Sink Visual Processing Unit Hardlight Generator > --- WEAPON ----------- Light Assault Rifle Light Assault Rifle > --- INVENTORY -------- Light Assault Rifle Light Assault Rifle [Rating: 13] Favorites ----------- Power Light Ion Engine Engine Light Ion Engine Propulsion Aluminum Leg Leg Aluminum Leg Wheel Compact Wheel Flight Unit Flight Unit Utility Heat Sink Device Heat Sink Processor Visual Processing Unit Weapon Light Assault Rifle Energy Gun Field Laser Ballistic Gun Light Assault Rifle Build | -11 -10 -9 -9 -8 ------- Run | Yrd Mat Mat Min Mat Slots Evolved 4 | . . 2 . 2 Power . | . . . . . Propulsion 2 | . . 2 . . Utility 2 | . . . . 2 Weapon . | . . . . . Parts Attached 28 | 6 6 3 5 8 Power 3 | 1 1 . 1 . Engine 3 | 1 1 . 1 . Core . | . . . . . Reactor . | . . . . . Propulsion 13 | 3 3 1 4 2 Treads . | . . . . . Leg 6 | 2 3 . . 1 Wheel 2 | 1 . 1 . . Hover . | . . . . . Flight 5 | . . . 4 1 Utility 6 | . 2 1 . 3 Device 5 | . 2 . . 3 Storage . | . . . . . Processor 1 | . . 1 . . Hackware . | . . . . . Protection . | . . . . . Artifact . | . . . . . Weapon 6 | 2 . 1 . 3 Energy Gun 1 | . . . . 1 Energy Cannon . | . . . . . Ballistic Gun 5 | 2 . 1 . 2 Ballistic Cannon . | . . . . . Launcher . | . . . . . Special Weapon . | . . . . . Impact Weapon . | . . . . . Slashing Weapon . | . . . . . Piercing Weapon . | . . . . . Special Melee Weapon . | . . . . . Unidentified Prototypes . | . . . . . Parts Lost 15 | . . . . 15 Power 1 | . . . . 1 Propulsion 6 | . . . . 6 Utility 3 | . . . . 3 Weapon 5 | . . . . 5 Highest Loss Streak 11 | . . . . 11 To Critical Strikes . | . . . . . Average Backups 3 | 3 4 3 3 1 Power . | . . . . . Propulsion 1 | 2 2 2 . . Utility . | . . . . . Weapon 1 | 1 . 1 1 1 Tool/Special . | . . . . . Unused Backups . | . . . . . Power . | . . . . . Propulsion . | . . . . . Utility . | . . . . . Weapon . | . . . . . Tool/Special . | . . . . . Average Slot Usage (%) 84 | . 87 99 97 65 Engine 9 | . 14 11 11 4 Leg 15 | . 28 22 8 1 Wheel 4 | . . 21 6 . Flight 11 | . . . 28 23 Device 13 | . 15 12 11 13 Processor 6 | . . 9 11 9 Ballistic Gun 21 | . 28 22 22 13 Peak Build Rating 13 | 5 7 10 10 13 Average Rating 7 | 1 6 9 9 10 On Entrance 6 | . 5 7 10 10 Avg Prop Armor Cover (%) 15 | . . 16 16 4 Naked Turns . | . . . . . Heaviest Build 11 | 5 9 9 8 11 Greatest Support 32 | 20 20 32 32 16 Greatest Overweight (x) 2 | . . . 2 1 Average Overweight (x) . | . . . . . Largest Inventory Capacity 5 | 5 5 5 5 5 Average Capacity 5 | 5 5 5 5 5 Most Carried 5 | 5 5 4 5 5 Average Carried 3 | 3 4 3 3 1 Final Capacity 5 | 5 5 5 5 5 Final Carried 5 | 2 5 4 3 . Class Distribution -------------------- 68% | Mutant 20% | Scavenger-Sprinter 11% | Scavenger-Mutant Dominant Class ---------------- Mutant | -10/Materials Mutant | -9/Materials Scavenger-Sprinter | -9/Mines Mutant | -8/Materials Resources | -11 -10 -9 -9 -8 ----------- Run | Yrd Mat Mat Min Mat Matter Collected 516 | 200 88 . 89 139 Remotely . | . . . . . Salvage Created 382 | . 131 . 46 205 Parts 28 | . 10 . 6 12 Haulers Intercepted . | . . . . . Recyclers Shooed . | . . . . . Parts Field Recycled . | . . . . . Retrieved Matter . | . . . . . Parts Self-Destructed . | . . . . . Prevented . | . . . . . Parts Restored . | . . . . . Kills | -11 -10 -9 -9 -8 ------- Run | Yrd Mat Mat Min Mat Combat Hostiles Destroyed 12 | . 3 . 3 6 Guns 12 | . 3 . 3 6 Classes Destroyed 3 | . 1 . 1 1 Swarmer 6 | . . . 3 3 Grunt 5 | . 3 . . 2 Sentry 1 | . . . . 1 Best Kill Streak 3 | . 2 . 3 2 Combat Bots Only 3 | . 2 . 3 2 Max Kills in Single Turn 1 | . 1 . 1 1 Gunslinging . | . . . . . Exploded . | . . . . . Melee . | . . . . . Uniques/NPCs Destroyed . | . . . . . Combat | -11 -10 -9 -9 -8 -------- Run | Yrd Mat Mat Min Mat Hostile Shots Fired 232 | . 18 3 16 195 Missed 79 | . 5 1 5 68 Hits 153 | . 13 2 11 127 Melee 2 | . . . . 2 Projectile 151 | . 13 2 11 125 Critical Strikes 2 | . . . . 2 Damage Taken 1612 | . 144 27 79 1362 Core 614 | . 32 . 6 576 Absorbed by Shields . | . . . . . Core Remaining (%) 95 | 100 87 . 98 . Volleys Fired 55 | . 16 . 4 35 Largest 2 | . 2 . 2 2 Hottest 63 | . 40 . 40 63 Shots Fired 94 | . 32 . 8 54 Gun 94 | . 32 . 8 54 Cannon . | . . . . . Launcher . | . . . . . Special . | . . . . . Kinetic 90 | . 32 . 8 50 Thermal 4 | . . . . 4 Explosive . | . . . . . Electromagnetic . | . . . . . Robot Hit Streak 7 | . 4 . 2 7 Robot Miss Streak 2 | . 2 . 2 2 Penetration Max . | . . . . . Secondary Targets 1 | . . . 1 . Max Gunslinging Chain 1 | . . . 1 . Shots Hit Robots 59 | . 18 . 3 38 Core Hits 26 | . 7 . 3 16 Critical Kills . | . . . . . Critical Parts Destroyed . | . . . . . Critical Strikes . | . . . . . Melee Attacks . | . . . . . Impact . | . . . . . Slashing . | . . . . . Piercing . | . . . . . Sneak Attacks . | . . . . . Combat Hostiles . | . . . . . Follow-up Attacks . | . . . . . Damage Inflicted 530 | . 146 . 36 348 Guns 530 | . 146 . 36 348 Cannons . | . . . . . Explosions . | . . . . . Melee . | . . . . . Ramming . | . . . . . Kinetic 494 | . 146 . 36 312 Thermal 36 | . . . . 36 Explosive . | . . . . . Electromagnetic . | . . . . . Impact . | . . . . . Slashing . | . . . . . Piercing . | . . . . . Highest Corruption . | . . . . . Average Corruption . | . . . . . Corruption Purged . | . . . . . Corruption Blocked . | . . . . . Overload Shots . | . . . . . Overflow Damage . | . . . . . Projectiles . | . . . . . Explosions . | . . . . . Melee . | . . . . . Knockbacks . | . . . . . Impact . | . . . . . Kinetic . | . . . . . Secondary . | . . . . . Self-Inflicted Damage . | . . . . . Shots . | . . . . . Rammed . | . . . . . Targets Rammed . | . . . . . Kicked . | . . . . . Crushed . | . . . . . Highest Temperature 24 | . 24 . . 6 Average Temperature 8 | . 10 . . 4 Received Heat Transfer 441 | . 72 9 . 360 Siege Activations . | . . . . . Martial Activations . | . . . . . Shielding Activations . | . . . . . Robots Disrupted . | . . . . . Combat Hostiles . | . . . . . Robots Corrupted . | . . . . . Combat Hostiles . | . . . . . Parts Fried . | . . . . . Impact Corruptions . | . . . . . Robots Melted . | . . . . . Combat Hostiles . | . . . . . Parts Melted . | . . . . . Heat Transferred 74 | . . . . 74 Parts Sabotaged . | . . . . . Parts Stolen . | . . . . . Parts Stripped . | . . . . . Power Chain Reactions . | . . . . . Alert | -11 -10 -9 -9 -8 ------- Run | Yrd Mat Mat Min Mat Maximum Alert Level . | . . . . . Low Security (%) 100 | 100 100 100 100 100 Level 1 . | . . . . . Level 2 . | . . . . . Level 3 . | . . . . . Level 4 . | . . . . . Level 5 . | . . . . . High Security . | . . . . . Max Security . | . . . . . Peak Influence 75 | . 40 15 75 40 Initial 9 | . . . 5 9 Average 14 | . 12 . 49 15 Influence Increases 355 | . 75 15 70 195 Destroy 0b10 Robot/C 240 | . 60 . 60 120 Destroy Leader 50 | . 10 . 10 30 Successful Hack 5 | . 5 . . . Lose Combat Pursuer 60 | . . 15 . 45 Influence Decreases 310 | . 75 . 60 175 Entered New Map 26 | . . . 10 16 Time Decay 214 | . 75 . 50 89 Lost Part 70 | . . . . 70 Squads Dispatched 3 | . 1 . . 2 Investigation . | . . . . . Extermination . | . . . . . Reinforcement 3 | . 1 . . 2 Assault . | . . . . . Garrison . | . . . . . Intercept . | . . . . . Searches Triggered . | . . . . . Construction Impeded . | . . . . . Haulers Reinforced . | . . . . . Active Scanning Responses . | . . . . . Cargo Convoy Interrupts . | . . . . . Stealth | -11 -10 -9 -9 -8 --------- Run | Yrd Mat Mat Min Mat Distress Signals 1 | . . . . 1 Communications Jammed . | . . . . . Distress Signals . | . . . . . Times Spotted 38 | . 9 3 4 22 Peak Tracking Total 16 | . 3 3 4 16 Tactical Retreats 2 | . . 1 . 1 Traps | -11 -10 -9 -9 -8 ------- Run | Yrd Mat Mat Min Mat Traps Triggered . | . . . . . Indirectly . | . . . . . Trap Hack Attempts . | . . . . . Triggered . | . . . . . Disarmed . | . . . . . Reprogrammed . | . . . . . Reused . | . . . . . Traps Extracted . | . . . . . Installed . | . . . . . Triggered . | . . . . . Machines | -11 -10 -9 -9 -8 ---------- Run | Yrd Mat Mat Min Mat Machines Disabled . | . . . . . Max in Single Turn . | . . . . . Machines Repaired . | . . . . . Machines Dismantled . | . . . . . Machines Sabotaged . | . . . . . Overloaded Fab Kills . | . . . . . Hacking | -11 -10 -9 -9 -8 --------- Run | Yrd Mat Mat Min Mat Machines Accessed 2 | . 1 . 1 . Terminals 2 | . 1 . 1 . Fabricators . | . . . . . Repair Stations . | . . . . . Recycling Units . | . . . . . Scanalyzers . | . . . . . Garrison Access . | . . . . . Total Hacks 7 | . 2 . 5 . Successful 2 | . 1 . 1 . Failed 5 | . 1 . 4 . Catastrophic 1 | . . . 1 . Database Lockouts . | . . . . . Manual . | . . . . . Terminals 7 | . 2 . 5 . Fabricators . | . . . . . Repair Stations . | . . . . . Recycling Units . | . . . . . Scanalyzers . | . . . . . Garrison Access . | . . . . . Terminal Hacks 2 | . 1 . 1 . Record 1 | . . . 1 . Prototype ID Bank 1 | . 1 . . . Fabricator Hacks . | . . . . . Repair Station Hacks . | . . . . . Recycling Unit Hacks . | . . . . . Scanalyzer . | . . . . . Garrison Access Hacks . | . . . . . Unauthorized Hacks . | . . . . . Terminals . | . . . . . Fabricators . | . . . . . Repair Stations . | . . . . . Recycling Units . | . . . . . Scanalyzers . | . . . . . Garrison Access . | . . . . . Data Cores Recovered . | . . . . . Used . | . . . . . Hacking Detections 2 | . 1 . 1 . Full Trace Events . | . . . . . Feedback Events . | . . . . . Feedback Blocked . | . . . . . Robot Schematics Acquired . | . . . . . Robots Built . | . . . . . Authchips . | . . . . . Time . | . . . . . Total Robot Build Rating . | . . . . . Part Schematics Acquired . | . . . . . Parts Built . | . . . . . Authchips . | . . . . . Time . | . . . . . Total Part Build Rating . | . . . . . Part Studies Acquired . | . . . . . Parts Repaired . | . . . . . Time . | . . . . . Parts Recycled . | . . . . . Recycled Matter . | . . . . . Retrieved Matter . | . . . . . Retrieved Components . | . . . . . Parts Scanalyzed . | . . . . . Part Schematics Acquired . | . . . . . Parts Damaged . | . . . . . Bothacking | -11 -10 -9 -9 -8 ------------ Run | Yrd Mat Mat Min Mat Used RIF Installer . | . . . . . Robots Hacked . | . . . . . Non-combat . | . . . . . Combat . | . . . . . Robot Hacks Applied . | . . . . . Relay Couplers Released . | . . . . . Fabnet Peak Effective % . | . . . . . Robots Rewired . | . . . . . Allies Hacked . | . . . . . Hacks Repelled . | . . . . . Allies | -11 -10 -9 -9 -8 -------- Run | Yrd Mat Mat Min Mat Total Allies . | . . . . . Largest Group . | . . . . . Highest-Rated Group . | . . . . . Highest-Rated Ally . | . . . . . Total Orders . | . . . . . Ally Attacks . | . . . . . Total Damage . | . . . . . Kills . | . . . . . Allies Corrupted . | . . . . . Allies Melted . | . . . . . Intel | -11 -10 -9 -9 -8 ------- Run | Yrd Mat Mat Min Mat Active Infowar (turns) 407 | . . 98 101 208 Optics 407 | . . 98 101 208 Terrain 16 | . . . . 16 Robot Analysis Total . | . . . . . Derelict Logs Recovered . | . . . . . Drone Launches . | . . . . . Drone Recoveries . | . . . . . Exploration | -11 -10 -9 -9 -8 ------------- Run | Yrd Mat Mat Min Mat Turns Passed 754 | 96 239 110 101 208 Spaces Moved 848 | 126 152 105 211 254 Core 130 | 97 . . 1 32 Treads . | . . . . . Legs 197 | 29 152 . . 16 Wheels 116 | . . 105 11 . Hover . | . . . . . Flight 405 | . . . 199 206 Fastest Speed 31 | 50 120 100 31 31 Average Speed 64 | 66 120 100 35 40 Slowest Speed 150 | 120 120 100 150 120 Overloaded Moves . | . . . . . Propulsion Burnouts . | . . . . . Robots Hopped 2 | . . . 1 1 Potential Cave-ins . | . . . . . Cave-ins Triggered . | . . . . . Exploration Rate (%) 24 | 4 38 6 49 25 Regions Visited 4 Branch Regions 1 Pre-discovered Areas . | . . . . . Known Exits Taken . | . . . . . Unknown Exits Taken 4 | 1 1 1 1 . Scrap Searched 1 | . . . 1 . Spaces Dug . | . . . . . Terrain Destroyed . | . . . . . Melee . | . . . . . Projectile . | . . . . . AOE . | . . . . . Terrain Rammed . | . . . . . Walls Destroyed . | . . . . . Machines Disabled . | . . . . . Actions | -11 -10 -9 -9 -8 --------- Run | Yrd Mat Mat Min Mat Total 976 | 139 184 109 230 314 Wait 14 | . . . 3 11 Move 840 | 125 151 104 208 252 Hop 2 | . . . 1 1 Pick Up 24 | 7 7 1 3 6 Fast Attach 2 | . . . 2 . Attach 21 | 6 2 2 2 9 Detach 1 | 1 . . . . Swap 7 | . 4 2 1 . Drop 10 | . 4 . 6 . Fire 55 | . 16 . 4 35 Melee . | . . . . . Ram . | . . . . . Kick . | . . . . . Crush . | . . . . . Escape Stasis . | . . . . . Rewire . | . . . . . Trap . | . . . . . Miscellaneous . | . . . . . Route ------- -11/Scrapyard -10/Materials -9/Materials -9/Mines -8/Materials History --------- Turn | Location | Event 8 | -11/Scrapyard | Discovered new exit (range 16) 97 | -11/Scrapyard | Entered Materials 297 | -10/Materials | Discovered new exit (range 4) 336 | -10/Materials | Entered another Materials area 336 | -9/Materials | Evolved 2 slots: Propulsion x2 338 | -9/Materials | Discovered new exit (range 8) 446 | -9/Materials | Entered Mines 521 | -9/Mines | Met a Derelict bent on vengeance 543 | -9/Mines | Discovered new exit (range 7) 547 | -9/Mines | Entered Materials 547 | -8/Materials | Evolved 2 slots: Utility x2 674 | -8/Materials | Lost 3 parts (1p1n1w) 701 | -8/Materials | Core integrity fell below 50% 738 | -8/Materials | Core integrity fell below 20% 755 | -8/Materials | Destroyed by L-31 Rogue with Katana Last Messages --------------- 00719_ Lgt. Assault Rifle destroyed. 00721_ S-10 Pest destroyed. 00724_ Acquired 14 matter. 00725_ S-10 Pest destroyed. 00726_ Lgt. Assault Rifle destroyed. 00727_ R-06 Scavenger collects Lgt. Ion Engine. 00729_ R-06 Scavenger collects Flight Unit. 00730_ Carbon-fiber Leg destroyed. 00731_ B-36 Bruiser destroyed. 00732_ R-06 Scavenger collects Flight Unit. 00735_ O-16 Technician: "IFF HANDSHAKE FAILED. SECURING TERMINAL." 00743_ K-01 Serf collects debris. 00744_ O-16 Technician uses terminal to summon reinforcements. 00744_ ALERT: Hostiles spotted, dispatching reinforcements to Terminal M001. 00744_ O-16 Technician locks terminal. 00745_ Acquired Field Laser. 00747_ K-01 Serf collects debris. Map ----- +----------------------------------------------------+ | ?????????????????????????????????????????????????? | | ?????????????????????????????????????????????????? | | ?????????????????????????????????????????????????? | | ?????????????????????????????????????????????????? | | ?????????????????????????????????????????????????? | | ?????????????????????????????????????????????????? | | ?????????????????????????????????????????????????? | | ?????????????????????????????????????????????????? | | ?????????????????????????????????????????????????? | | ?????????????????????????????????????????????????? | | ?????????????????????????????????????????????????? | | ?????????????????????????????????????????????????? | | ?????????????????????????????????????????????????? | | ???#######???????????????????????????????????????? | | #### #???????????????????????????????????????? | | #???????????????????????????????????????? | | " #???????????????????????????????????????# | | % #?????????????????????????????????????? ? | | #### #????????????????????????????????????? ?? | | ???## ##???????????????????????????????????? ??? | | ????# #####????????????""?????????????????? #??? | | ????# #"""#???????????? ????????????????? #??? | | ????# #"Y"#?###???????? ???????????????? #??? | | ????# #"r"###T#########+################# #??? | | ????# r #??? | | ????# @ #??? | | #???# ! u!! l g s s sg #??? | | ????#! """ !!! """ #####g######/#######??? | | ????# """ !!!r """ o""#????????# ####??? | | ????+ "" """% T"#????????# """#??? | | ????# k ""#????????# R"#??? | | ????# #????????# """#??? | | ????# #????????# ####??? | | ????# #####+### #????????# #?????? | | ????# #????? ?## % %#????????#+######?????? | | ????# #????????# #????????# #??????????? | | ##### #????????# g#????????# #??????????? | | #????????# ########## ###????????? | | #????????# [ =%/ #????????? | | #?? """ + %[ = / """ ?? | | ########## #?# ## # """""?? | | ?????????# #?#??????################# #? """"??? | | ?????????# #????????????????????????? #??""""??? | | ?????????? #????????????????????????? #???"""??? | | ?????????? ?????????????????????????? #????#???? | | ?????????? ??????????????????????????? ????????? | | ???????????????????????????????????????? ????????? | | ???????????????????????????????????????? ????????? | | ?????????????????????????????????????????#???????? | | ?????????????????????????????????????????????????? | +----------------------------------------------------+ Best States ------------- Heat Dissipation 48 Energy Generation 10 Energy Capacity 250 Matter Stores 300 Matter Capacity 300 Sight Range 18 Terrain Scan Range 14 Terrain Scan Density 10 Evasion (%) 63 Item Schematics ----------------- None Robot Schematics ------------------ None Fabricated ------------ Nothing Repaired ---------- Nothing Studied --------- None Alien Tech Used ----------------- None Achievements -------------- DATA ERROR: Steam Global Achievement% Ghost 'Em Spot Them First There's More Where That Came From Challenges ------------ None Game ------ Seed SpreadBombDeck Manual? 0 Play Time 00:16:59 Cumulative 8.0 hours Start 2026.02.05 @ 13:15:16 End 2026.02.05 @ 14:00:25 Sessions 1 Manual Loads 0 Difficulty Rogue Special Mode None Game No. 46 Rogue 38 Adventurer 8 Explorer 0 Win Type - Total 0 Types 0/0/0/0/0/0/0/0/0/0 Lore% 9 Gallery% 17 Achievement% 9 Wizard Run 0 Options --------- Layout 1 ASCII 0 Keyboard 0 Movement Mouse Keybinds 0 Fullscreen 1 Font 24/Smallcaps Map View 50x40 Zoom Use 0% Tactical HUD 1 Map Filters NONE Filters NONE Steam 1 RUN: c9c34c92-3e55-4eaf-b918-4396d2f972cf